bitfinex/quotes_BTCUSD_20250330
["timestamp","ask_amount","ask_price","bid_price","bid_amount"]
[1743360439180,0.71888057,82909.0,82908.0,0.0003366]
[1743360440884,0.70643038,82909.0,82908.0,0.0003366]
[1743360441893,0.70166953,82909.0,82908.0,0.0003366]
[1743360444837,1.27626953,82909.0,82908.0,0.0003366]
[1743360450868,1.37321038,82909.0,82908.0,6e-07]
[1743360451087,1.37321038,82909.0,82869.0,0.241344]
[1743360451088,0.253377,82880.0,82869.0,0.241344]
[1743360451310,0.012065,82880.0,82872.0,0.012066]
[1743360451477,0.241308,82882.0,82873.0,0.253399]
[1743360451478,0.00874075,82879.0,82873.0,0.253399]
[1743360451985,0.241308,82882.0,82873.0,0.253399]
[1743360452139,0.00872903,82878.0,82873.0,0.253399]
[1743360452345,0.253373,82882.0,82873.0,0.253399]
[1743360452574,0.00872903,82877.0,82873.0,0.25353985]
[1743360452761,0.253373,82882.0,82873.0,0.25653985]
[1743360452961,0.00872903,82876.0,82873.0,0.00314085]
[1743360453190,0.253373,82882.0,82873.0,0.24147285]
[1743360453393,0.00872903,82875.0,82873.0,0.00014085]
[1743360453600,0.012065,82881.0,82873.0,0.00014085]
[1743360453804,0.012065,82883.0,82873.0,0.25353785]
[1743360454020,0.00872903,82880.0,82873.0,0.25353785]
[1743360454208,0.13968,82884.0,82877.0,0.2462195]
[1743360454416,0.00872903,82879.0,82876.0,0.012066]
[1743360454608,0.13968,82884.0,82876.0,0.012066]
[1743360454809,0.1826457,82884.0,82876.0,0.012066]
[1743360455152,0.00872024,82883.0,82876.0,0.012066]
[1743360455496,0.00872024,82883.0,82877.0,0.253387]
[1743360455701,0.00872024,82883.0,82877.0,0.012066]
[1743360455895,0.00872024,82883.0,82875.0,0.012066]
[1743360456096,0.00872024,82883.0,82878.0,0.0009962]
[1743360458192,0.00872024,82883.0,82879.0,0.012065]
[1743360458399,0.00872024,82883.0,82878.0,0.0039962]
[1743360458785,0.00872024,82883.0,82878.0,0.0069962]
[1743360459122,0.00872024,82883.0,82878.0,0.0039962]
[1743360459323,0.00872024,82883.0,82879.0,0.003]
[1743360459735,0.00872024,82883.0,82880.0,0.241312]
[1743360459939,0.00872024,82883.0,82881.0,0.241309]
[1743360460207,0.00872024,82883.0,82882.0,0.012065]
[1743360460415,0.00872024,82883.0,82882.0,0.088765]
[1743360460620,0.13968,82888.0,82886.0,0.012064]
[1743360460829,0.13968,82888.0,82887.0,0.241292]
[1743360461069,0.13968,82888.0,82886.0,0.012064]
[1743360461611,0.253337,82894.0,82884.0,0.241298]
[1743360461972,0.13968,82891.0,82886.0,0.001]
[1743360462099,0.13968,82891.0,82887.0,0.001]
[1743360462410,0.13968,82891.0,82884.0,0.241298]
[1743360463175,0.33013575,82889.0,82884.0,0.241298]
[1743360463913,0.33013575,82889.0,82886.0,0.001]
[1743360464113,0.33013575,82889.0,82884.0,0.242298]
[1743360464315,0.33013575,82889.0,82884.0,0.243298]
[1743360464497,0.09525569,82889.0,82884.0,0.243298]
[1743360464898,0.09525569,82889.0,82887.0,0.0009915]
[1743360465093,0.01890719,82888.0,82887.0,0.0009915]
[1743360465324,0.151743,82893.0,82887.0,0.0009915]
[1743360467110,0.151743,82893.0,82887.0,0.0019915]
[1743360467291,0.151743,82893.0,82887.0,0.0009915]
[1743360468667,0.00868418,82892.0,82887.0,0.0009915]
[1743360470952,0.01890734,82891.0,82887.0,0.0009915]
[1743360471152,0.012064,82888.0,82887.0,0.0009915]
[1743360471470,0.012064,82888.0,82883.0,0.00010101]
[1743360471471,0.241292,82887.0,82883.0,0.00010101]
[1743360471706,0.00869591,82886.0,82883.0,0.00010101]
[1743360471826,0.24999091,82886.0,82883.0,0.00010101]
[1743360472022,0.26205491,82886.0,82883.0,0.00010101]
[1743360473538,0.26205491,82886.0,82883.0,0.00210101]
[1743360473763,0.26205491,82886.0,82883.0,0.00410101]
[1743360474907,0.27474622,82886.0,82883.0,0.00410101]
[1743360475095,0.29365435,82886.0,82883.0,0.00410101]
[1743360475242,0.27474622,82886.0,82883.0,0.00410101]
[1743360475459,0.253366,82884.0,82883.0,0.00410101]
[1743360475659,0.26206484,82884.0,82883.0,0.00410101]
[1743360475878,0.26206484,82884.0,82883.0,0.00443801]
[1743360476610,0.26206484,82884.0,82883.0,0.00243801]
[1743360476815,0.00869884,82884.0,82883.0,0.00243801]
[1743360477382,0.24999984,82884.0,82883.0,0.00443801]
[1743360477779,0.26206484,82884.0,82883.0,0.00443801]
[1743360481748,0.65870569,82884.0,82883.0,0.00443801]
[1743360482373,0.68986978,82884.0,82883.0,0.0002608]
[1743360482602,0.65870569,82884.0,82883.0,0.0002608]
[1743360482844,0.253396,82874.0,82873.0,0.00014085]
[1743360483046,0.393076,82874.0,82873.0,0.00014085]
[1743360483247,0.4015943,82874.0,82873.0,0.00014085]
[1743360483968,0.4015943,82874.0,82873.0,0.00114085]
[1743360484221,0.4015943,82874.0,82873.0,0.00314085]
[1743360484418,0.24464918,82874.0,82873.0,0.00314085]
[1743360484626,0.29364918,82874.0,82873.0,0.00314085]
[1743360484833,0.27473756,82874.0,82873.0,0.00314085]
[1743360485032,0.5915642,82874.0,82873.0,0.00314085]
[1743360485290,0.52813356,82874.0,82873.0,0.00314085]
[1743360486180,0.54267441,82874.0,82873.0,0.00314085]
[1743360487312,0.56739345,82874.0,82873.0,0.00314085]
[1743360488424,0.56739345,82874.0,82873.0,0.00347785]
[1743360491039,0.58630515,82874.0,82873.0,0.00347785]
[1743360491200,0.56739345,82874.0,82873.0,0.00347785]
[1743360491555,0.48529345,82874.0,82873.0,0.00347785]
[1743360491751,0.35017419,82874.0,82873.0,0.00347785]
[1743360491915,0.48985419,82874.0,82873.0,0.00347785]
[1743360492281,0.44085419,82874.0,82873.0,0.00347785]
[1743360492484,0.42631334,82874.0,82873.0,0.00347785]
[1743360495123,0.44522499,82874.0,82873.0,0.00347785]
[1743360495498,0.74085419,82874.0,82873.0,0.00347785]
[1743360495701,0.81765419,82874.0,82873.0,0.00347785]
[1743360495957,0.86395419,82874.0,82873.0,0.00347785]
[1743360496305,0.86395419,82874.0,82873.0,0.00147785]
[1743360496509,0.86395419,82874.0,82873.0,0.00047785]
[1743360496707,0.86495419,82874.0,82873.0,0.00047785]
[1743360496912,0.86595419,82874.0,82873.0,0.00047785]
[1743360497111,0.86495419,82874.0,82873.0,0.00047785]
[1743360497447,0.74285419,82874.0,82873.0,0.00047785]
[1743360497994,0.74185419,82874.0,82873.0,0.00047785]
[1743360498197,0.74285419,82874.0,82873.0,0.00047785]
[1743360499845,0.3,82865.0,82861.0,0.0009901]
[1743360500207,0.00844989,82864.0,82861.0,0.0009901]
[1743360501073,0.00844989,82864.0,82861.0,0.0029901]
[1743360501427,0.00844989,82864.0,82861.0,0.0049901]
[1743360501863,0.00844989,82864.0,82861.0,0.0029901]
[1743360502945,0.3,82867.0,82861.0,0.0029901]
[1743360502946,0.3,82865.0,82861.0,0.0029901]
[1743360503145,0.00844212,82863.0,82861.0,0.0049901]
[1743360503346,0.3,82865.0,82861.0,0.0049901]
[1743360503621,0.00844212,82862.0,82861.0,0.0049901]
[1743360503849,0.3,82865.0,82861.0,0.0049901]
[1743360503976,0.00844505,82862.0,82861.0,0.0049901]
[1743360504181,0.3,82865.0,82861.0,0.0029901]
[1743360504554,0.02735844,82862.0,82861.0,0.0049901]
[1743360504682,0.00844212,82864.0,82861.0,0.0029901]
[1743360504897,0.00844212,82864.0,82861.0,0.0009901]
[1743360505118,0.13968,82869.0,82861.0,0.0130581]
[1743360505321,0.00846712,82868.0,82862.0,0.0777]
[1743360505583,0.14015784,82873.0,82862.0,0.0777]
[1743360505792,0.00847301,82867.0,82862.0,0.0777]
[1743360506007,0.14015784,82873.0,82862.0,0.0777]
[1743360506208,0.00047784,82872.0,82862.0,0.0777]
[1743360506396,0.00895232,82872.0,82862.0,0.089768]
[1743360509285,0.00895232,82872.0,82862.0,0.0777]
[1743360512133,0.07238296,82872.0,82862.0,0.0777]
[1743360512343,0.00895232,82872.0,82862.0,0.0777]
[1743360512971,0.00895232,82872.0,82862.0,0.0780372]
[1743360519484,0.00895232,82872.0,82868.0,0.012067]
[1743360519684,0.00895232,82872.0,82871.0,0.1295]
[1743360520123,0.00895232,82872.0,82871.0,0.1304982]
[1743360521188,0.00847448,82872.0,82871.0,0.1304982]
[1743360521409,0.0001686,82874.0,82871.0,0.13002036]
[1743360521579,0.00846819,82872.0,82871.0,0.13002036]
[1743360521956,0.0001686,82874.0,82871.0,0.13002036]
[1743360522157,0.00846819,82872.0,82871.0,0.13002036]
[1743360522363,0.0001686,82874.0,82871.0,0.13002036]
[1743360523117,0.0011686,82874.0,82871.0,0.13002036]
[1743360524905,0.0001686,82872.0,82871.0,0.13002036]
[1743360525751,0.0001686,82872.0,82871.0,0.14208636]
[1743360527898,0.0001686,82872.0,82871.0,0.14449952]
[1743360528121,0.0001686,82872.0,82871.0,0.14208636]
[1743360530491,0.0001686,82872.0,82871.0,0.14449946]
[1743360532212,0.0001686,82872.0,82871.0,0.14208636]
[1743360534794,0.0001686,82872.0,82871.0,0.14449937]
[1743360534996,0.0001686,82872.0,82871.0,0.14208636]
[1743360535381,0.0001686,82872.0,82871.0,0.14308636]
[1743360536925,0.0001686,82872.0,82871.0,0.13102036]
[1743360537130,0.0001686,82872.0,82871.0,0.0019982]
[1743360537333,0.03829127,82872.0,82871.0,0.0019982]
[1743360537548,0.04923022,82872.0,82871.0,0.002]
[1743360537749,0.04681872,82872.0,82871.0,0.0023372]
[1743360538106,0.07311653,82872.0,82871.0,0.0023372]
[1743360538303,0.07070503,82872.0,82871.0,0.0023372]
[1743360538631,0.04454735,82872.0,82871.0,0.0023372]
[1743360538830,0.04695885,82872.0,82871.0,0.0023372]
[1743360539036,0.04454735,82872.0,82871.0,0.0023372]
[1743360539246,0.03248135,82872.0,82871.0,0.0023372]
[1743360540364,0.04454735,82872.0,82871.0,0.0023372]
[1743360540799,0.4403997,82872.0,82871.0,0.0023372]
[1743360541001,0.78126709,82872.0,82871.0,0.0023372]
[1743360541188,0.61355129,82872.0,82871.0,0.0023372]
[1743360541411,0.72083229,82872.0,82871.0,0.0013372]
[1743360541816,0.012068,82863.0,82862.0,0.0003372]
[1743360542098,0.02660885,82863.0,82862.0,0.0003372]
[1743360542235,0.27643722,82863.0,82862.0,0.0003372]
[1743360543501,0.29535171,82863.0,82862.0,0.0003372]
[1743360543879,0.28081086,82863.0,82862.0,0.0003372]
[1743360544751,0.28181086,82863.0,82862.0,0.0003372]
[1743360545098,0.28381086,82863.0,82862.0,0.0003372]
[1743360545299,0.02938086,82863.0,82862.0,0.0003372]
[1743360545723,0.03238086,82863.0,82862.0,0.0124052]
[1743360545933,0.005,82863.0,82862.0,0.0124052]
[1743360546800,0.005,82863.0,82862.0,0.0003372]
[1743360546918,0.003,82863.0,82862.0,0.0003372]
[1743360547119,6.759e-05,82872.0,82862.0,0.0124052]
[1743360547541,0.00847899,82871.0,82868.0,0.000991]
[1743360547971,6.759e-05,82872.0,82868.0,0.000991]
[1743360548170,0.00846139,82870.0,82868.0,0.000991]
[1743360548491,6.759e-05,82872.0,82868.0,0.000991]
[1743360548852,0.00306759,82872.0,82870.0,0.012067]
[1743360549051,0.02497956,82872.0,82870.0,0.012067]
[1743360549816,0.02497956,82872.0,82871.0,0.094866]
[1743360550259,0.02197956,82872.0,82871.0,0.094866]
[1743360550460,0.01897956,82872.0,82871.0,0.094866]
[1743360550582,0.01897956,82872.0,82871.0,0.092866]
[1743360550802,0.02197956,82872.0,82871.0,0.092866]
[1743360551025,0.02497956,82872.0,82871.0,0.092866]
[1743360551225,0.02197956,82872.0,82871.0,0.092866]
[1743360551471,0.01897956,82872.0,82871.0,0.092866]
[1743360551644,0.01997956,82872.0,82871.0,0.092866]
[1743360551846,0.02097956,82872.0,82871.0,0.092866]
[1743360553047,0.02097956,82872.0,82871.0,0.010066]
[1743360553221,0.02097956,82872.0,82871.0,0.241338]
[1743360554191,0.02097956,82872.0,82871.0,0.253404]
[1743360555860,0.02097956,82872.0,82868.0,0.000991]
[1743360555861,0.241342,82870.0,82868.0,0.000991]
[1743360555999,0.012067,82866.0,82857.0,0.0003368]
[1743360556198,0.25343,82863.0,82857.0,0.0003368]
[1743360556412,0.00852117,82865.0,82857.0,0.0003368]
[1743360556606,0.0085241,82863.0,82857.0,0.0003368]
[1743360556834,0.02471654,82867.0,82857.0,0.0003368]
[1743360557039,0.0085241,82863.0,82857.0,0.0003368]
[1743360557233,0.02471654,82867.0,82857.0,0.0003368]
[1743360557571,0.0085241,82863.0,82862.0,0.0023372]
[1743360557773,0.02471654,82867.0,82862.0,0.0023372]
[1743360557958,0.02471654,82867.0,82862.0,0.0043372]
[1743360558168,0.00852117,82866.0,82862.0,0.0043372]
[1743360558779,0.00852117,82866.0,82862.0,0.0023372]
[1743360559357,0.00845286,82866.0,82862.0,0.0023372]
[1743360559609,0.00845286,82866.0,82862.0,0.0003372]
[1743360559919,0.00845286,82866.0,82862.0,0.0013372]
[1743360560142,0.00845286,82866.0,82862.0,0.0023372]
[1743360560345,0.00845286,82866.0,82862.0,0.0013372]
[1743360560494,0.13956,82868.0,82862.0,0.0003372]
[1743360560850,0.00850979,82867.0,82862.0,0.0023372]
[1743360561046,0.02742162,82867.0,82865.0,0.0009898]
[1743360563878,0.02742162,82867.0,82865.0,0.0019898]
[1743360564252,0.02742162,82867.0,82865.0,0.0069898]
[1743360567897,0.01891183,82867.0,82865.0,0.0069898]
[1743360568604,0.01891183,82867.0,82866.0,0.25342]
[1743360568802,0.01891183,82867.0,82866.0,0.012067]
[1743360569021,0.01891183,82867.0,82865.0,0.0069898]
[1743360569506,0.01891183,82867.0,82865.0,0.0059898]
[1743360569806,0.01891183,82867.0,82866.0,0.001]
[1743360570204,0.01891183,82867.0,82866.0,0.25342]
[1743360570612,0.01891183,82867.0,82866.0,0.25442]
[1743360570988,0.27232883,82867.0,82866.0,0.001]
[1743360571240,0.28031819,82867.0,82866.0,0.001]
[1743360572476,0.28031819,82867.0,82866.0,0.002]
[1743360573535,0.28031819,82867.0,82866.0,0.0023372]
[1743360573944,0.41987819,82867.0,82866.0,0.0023372]
[1743360578340,0.16646119,82867.0,82866.0,0.0023372]
[1743360578545,0.02690119,82867.0,82866.0,0.0023372]
[1743360580325,0.02690119,82867.0,82866.0,0.2436902]
[1743360580565,0.02690119,82867.0,82866.0,0.0023372]
[1743360584644,0.00798936,82867.0,82866.0,0.0023372]
[1743360585073,6.759e-05,82872.0,82866.0,0.0023372]
[1743360585262,6.759e-05,82872.0,82868.0,0.0009817]
[1743360586287,0.00106759,82872.0,82868.0,0.2423277]
[1743360586694,0.00106759,82872.0,82869.0,0.012067]
[1743360587093,0.00106759,82872.0,82868.0,0.3189277]
[1743360587525,0.00106759,82872.0,82868.0,0.0775817]
[1743360587775,6.759e-05,82872.0,82869.0,0.253409]
[1743360588020,0.00106759,82872.0,82869.0,0.012067]
[1743360588470,0.00106759,82872.0,82868.0,0.3189287]
[1743360588716,0.00800661,82871.0,82868.0,0.0009817]
[1743360588963,6.759e-05,82872.0,82868.0,0.0009817]
[1743360588964,0.001,82872.0,82868.0,0.0009817]
[1743360589205,0.00801137,82870.0,82868.0,0.0009817]
[1743360589410,0.241321,82878.0,82868.0,0.0009817]
[1743360589613,0.25348225,82878.0,82868.0,0.0009817]
[1743360589735,0.00801137,82877.0,82868.0,0.0009817]
[1743360590617,0.241324,82876.0,82868.0,0.0009817]
[1743360590848,0.001,82872.0,82868.0,0.0009817]
[1743360591304,0.241324,82876.0,82868.0,0.0009817]
[1743360591527,0.00801137,82871.0,82868.0,0.0009817]
[1743360591759,0.00801137,82870.0,82868.0,0.0009817]
[1743360591992,0.02374315,82873.0,82868.0,0.0009817]
[1743360592227,0.00801137,82872.0,82868.0,0.0009817]
[1743360592708,0.02692272,82872.0,82868.0,0.0009817]
[1743360592920,0.00801137,82872.0,82868.0,0.0009817]
[1743360594750,0.01042287,82872.0,82868.0,0.0009817]
[1743360594910,0.01142287,82872.0,82868.0,0.0009817]
[1743360595109,0.00901137,82872.0,82868.0,0.0009817]
[1743360596645,0.02792271,82872.0,82868.0,0.0009817]
[1743360596838,0.02792271,82872.0,82871.0,0.012066]
[1743360597047,0.00917997,82872.0,82871.0,0.057166]
[1743360597220,0.0011686,82872.0,82871.0,0.057166]
[1743360597638,0.0001686,82872.0,82871.0,0.136366]
[1743360598050,0.0011686,82872.0,82871.0,0.136366]
[1743360598488,0.0001686,82872.0,82871.0,0.136366]
[1743360598692,0.0001686,82872.0,82871.0,0.22997081]
[1743360598844,0.0001686,82872.0,82871.0,0.23197081]
[1743360599191,0.0001686,82872.0,82871.0,0.22955769]
[1743360599404,0.33771438,82884.0,82883.0,0.012065]
[1743360599569,0.33776131,82884.0,82883.0,0.012065]
[1743360599796,0.34577257,82884.0,82883.0,0.012065]
[1743360599985,0.34577257,82884.0,82883.0,0.091265]
[1743360601196,0.36468143,82884.0,82883.0,0.091265]
[1743360602005,0.34577257,82884.0,82883.0,0.091265]
[1743360603481,0.00805819,82884.0,82883.0,0.091265]
[1743360603895,4.693e-05,82884.0,82883.0,0.091265]
[1743360604498,4.693e-05,82884.0,82883.0,0.092265]
[1743360604704,4.693e-05,82884.0,82883.0,0.093265]
[1743360607670,4.693e-05,82884.0,82883.0,0.014065]
[1743360607870,4.693e-05,82884.0,82883.0,0.002]
[1743360608370,0.0081228,82884.0,82883.0,0.002]
[1743360608599,4.693e-05,82884.0,82883.0,0.002]
[1743360608781,0.0081228,82884.0,82883.0,0.002]
[1743360609093,0.0081228,82884.0,82883.0,0.002337]
[1743360609402,0.0082913,82884.0,82883.0,0.002337]
[1743360609762,0.02528291,82884.0,82883.0,0.002337]
[1743360609946,0.02287141,82884.0,82883.0,0.002337]
[1743360611379,0.0082913,82884.0,82883.0,0.002337]
[1743360613634,0.0227678,82884.0,82883.0,0.002337]
[1743360614640,0.0107028,82884.0,82883.0,0.002337]
[1743360614842,0.0082913,82884.0,82883.0,0.002337]
[1743360615680,0.0203563,82884.0,82883.0,0.002337]
[1743360616305,0.0082913,82884.0,82883.0,0.002337]
[1743360617179,0.2640688,82884.0,82883.0,0.002337]
[1743360617385,0.27619815,82884.0,82883.0,0.002337]
[1743360617595,0.65769815,82884.0,82883.0,0.002337]
[1743360617816,0.70389815,82884.0,82883.0,0.002337]
[1743360618020,1.73516315,82884.0,82883.0,0.002337]
[1743360618216,1.74000215,82884.0,82883.0,0.002337]
[1743360618392,0.70873715,82884.0,82883.0,0.002337]
[1743360618835,0.71784821,82884.0,82883.0,0.002337]
[1743360619019,0.71784821,82884.0,82883.0,0.001337]
[1743360619424,0.71884821,82884.0,82883.0,0.000337]
[1743360619841,0.71784821,82884.0,82883.0,0.000337]
[1743360620054,0.71984821,82884.0,82883.0,0.000337]
[1743360620424,0.72084821,82884.0,82883.0,0.000337]
[1743360620604,0.71984821,82884.0,82883.0,0.000337]
[1743360620806,0.71784821,82884.0,82883.0,0.000337]
[1743360621001,0.71984821,82884.0,82883.0,0.000337]
[1743360622426,0.72284821,82884.0,82883.0,0.000337]
[1743360622634,0.72484821,82884.0,82883.0,0.000337]
[1743360625627,0.74376041,82884.0,82883.0,0.000337]
[1743360627018,0.72484821,82884.0,82883.0,0.000337]
[1743360631203,0.73236339,82884.0,82883.0,0.000337]
[1743360631649,0.48767546,82884.0,82883.0,0.000337]
[1743360631850,0.72897646,82884.0,82883.0,0.000337]
[1743360632029,0.72914496,82884.0,82883.0,0.000337]
[1743360632960,0.86862496,82884.0,82883.0,0.000337]
[1743360633982,0.89978905,82884.0,82883.0,0.000337]
[1743360634175,0.90478905,82884.0,82883.0,0.000337]
[1743360634577,1.63660305,82884.0,82883.0,0.000337]
[1743360635501,2.56553905,82884.0,82883.0,0.000337]
[1743360636488,2.56553905,82884.0,82883.0,1e-06]
[1743360636489,2.59750785,82884.0,82883.0,1e-06]
[1743360636855,2.56553905,82884.0,82883.0,1e-06]
[1743360637266,2.59053905,82884.0,82883.0,1e-06]
[1743360638187,2.28766305,82884.0,82883.0,1e-06]
[1743360643404,0.553414,82868.0,82867.0,0.0009921]
[1743360643537,0.312067,82867.0,82866.0,0.0003372]
[1743360643885,0.34085443,82867.0,82866.0,0.0003372]
[1743360644718,0.02878743,82867.0,82866.0,0.0003372]
[1743360644918,0.02878743,82867.0,82866.0,0.0023372]
[1743360645181,0.61577443,82867.0,82866.0,0.0023372]
[1743360645794,0.63958678,82867.0,82866.0,0.0023372]
[1743360646352,0.63958678,82867.0,82866.0,0.0043372]
[1743360646548,0.62504593,82867.0,82866.0,0.0043372]
[1743360646749,0.76452593,82867.0,82866.0,0.0866372]
[1743360649053,1.06452593,82867.0,82866.0,0.0043372]
[1743360649434,1.08343977,82867.0,82866.0,0.0043372]
[1743360651547,0.63189277,82867.0,82866.0,0.10625164]
[1743360651693,0.60808042,82867.0,82866.0,0.0809372]
[1743360652303,0.59383384,82867.0,82866.0,0.0809372]
[1743360652499,0.61844978,82867.0,82866.0,0.0809372]
[1743360653003,0.63270236,82867.0,82866.0,0.0809372]
[1743360655089,0.61395712,82867.0,82866.0,0.0809372]
[1743360656174,0.61395712,82867.0,82866.0,0.0849372]
[1743360659225,0.59970454,82867.0,82866.0,0.0849372]
[1743360659430,0.61396387,82867.0,82866.0,0.0849372]
[1743360659789,0.58934793,82867.0,82866.0,0.0849372]
[1743360660921,0.58934793,82867.0,82866.0,0.0083372]
[1743360662480,0.58934793,82867.0,82866.0,0.0903372]
[1743360664410,0.01442793,82867.0,82866.0,0.0903372]
[1743360665424,0.03334075,82867.0,82866.0,0.3316902]
[1743360665610,0.03334075,82867.0,82866.0,0.3437572]
[1743360666084,0.03334075,82867.0,82866.0,0.41178033]
[1743360666085,0.01442793,82867.0,82866.0,0.41178033]
[1743360666509,0.0001686,82867.0,82866.0,0.41178033]
[1743360667086,0.0001686,82867.0,82866.0,0.3437572]
[1743360672351,0.0001686,82867.0,82866.0,0.0903372]
[1743360672553,0.0001686,82867.0,82866.0,0.0083372]
[1743360672755,0.0001686,82867.0,82866.0,0.2617572]
[1743360673193,0.0001686,82867.0,82866.0,0.3423572]
[1743360673349,0.0001686,82867.0,82866.0,0.47671823]
[1743360674594,0.0001686,82867.0,82866.0,0.47471823]
[1743360674794,0.0001686,82867.0,82866.0,0.47971823]
[1743360675896,0.0001686,82867.0,82866.0,0.47771823]
[1743360676106,0.0001686,82867.0,82866.0,0.48171823]
[1743360676670,0.0001686,82867.0,82866.0,0.47771823]
[1743360676876,0.0001686,82867.0,82866.0,0.48271823]
[1743360680622,0.0001686,82867.0,82866.0,0.3964572]
[1743360685132,0.0001686,82867.0,82866.0,0.54499763]
[1743360690082,0.0001686,82867.0,82866.0,0.84499763]
[1743360691249,0.0001686,82867.0,82866.0,0.86923684]
[1743360694021,0.0001686,82867.0,82866.0,0.84499763]
[1743360695269,0.0001686,82867.0,82866.0,0.86916739]
[1743360696753,0.0001686,82867.0,82866.0,0.84499763]
[1743360703465,0.0001686,82867.0,82866.0,0.70563763]
[1743360703666,0.0001686,82867.0,82866.0,0.3158572]
[1743360703867,0.0001686,82867.0,82866.0,0.2677572]
[1743360715167,0.0001686,82867.0,82866.0,0.2627572]
[1743360715571,0.0001686,82867.0,82866.0,0.2667572]
[1743360715892,0.0001686,82867.0,82866.0,0.2617572]
[1743360716097,0.0001686,82867.0,82866.0,0.2657572]
[1743360726327,0.0001686,82867.0,82866.0,0.0123372]
[1743360726550,0.2535856,82867.0,82866.0,0.0123372]
[1743360726760,0.0122356,82867.0,82866.0,0.0123372]
[1743360726865,0.02736264,82867.0,82866.0,0.0123372]
[1743360727502,0.02736264,82867.0,82866.0,0.0083372]
[1743360727695,0.02736264,82867.0,82866.0,0.0103372]
[1743360728007,0.05176167,82867.0,82866.0,0.0103372]
[1743360728213,0.05176167,82867.0,82866.0,0.0063372]
[1743360728625,0.03969467,82867.0,82866.0,0.0083372]
[1743360729478,0.03969467,82867.0,82866.0,0.0063372]
[1743360730081,0.03969467,82867.0,82866.0,0.0083372]
[1743360731978,0.05176167,82867.0,82866.0,0.0083372]
[1743360732404,0.03969467,82867.0,82866.0,0.0083372]
[1743360740048,0.05860691,82867.0,82866.0,0.0083372]
[1743360740823,0.03420788,82867.0,82866.0,0.0204042]
[1743360740970,0.01908084,82867.0,82866.0,0.0204042]
[1743360741772,0.0001686,82867.0,82866.0,0.0204042]
[1743360745200,0.01907963,82867.0,82866.0,0.0204042]
[1743360746596,0.0001686,82867.0,82866.0,0.0204042]
[1743360749650,0.0001686,82867.0,82866.0,0.02281751]
[1743360750508,0.0001686,82867.0,82866.0,0.0204042]
[1743360750916,0.0001686,82867.0,82866.0,0.02281741]
[1743360751810,0.0001686,82867.0,82866.0,0.0204042]
[1743360752016,0.0001686,82867.0,82866.0,0.10686583]
[1743360752205,0.0001686,82867.0,82866.0,0.18976583]
[1743360752894,0.0001686,82867.0,82866.0,0.18576583]
[1743360753103,0.0001686,82867.0,82866.0,0.23506583]
[1743360753345,0.0001686,82867.0,82866.0,0.23765273]
[1743360756235,0.0001686,82867.0,82866.0,0.24265273]
[1743360757270,0.34358912,82891.0,82890.0,0.241283]
[1743360757473,0.34358912,82891.0,82890.0,0.253347]
[1743360757770,0.35869427,82891.0,82890.0,0.253347]
[1743360758342,0.36069427,82891.0,82890.0,0.253347]
[1743360760227,0.36086287,82891.0,82890.0,0.253347]
[1743360761553,0.012064,82890.0,82889.0,0.0009842]
[1743360761886,0.11099011,82890.0,82889.0,0.0009842]
[1743360762086,0.0814,82878.0,82872.0,0.253402]
[1743360762291,0.0024115,82877.0,82873.0,0.012066]
[1743360762551,0.0814,82878.0,82876.0,0.0009894]
[1743360762893,0.01756018,82877.0,82876.0,0.0009894]
[1743360763303,0.01514868,82877.0,82876.0,0.2423134]
[1743360763473,0.01514868,82877.0,82876.0,0.2543794]
[1743360763687,0.02428832,82877.0,82876.0,0.2543794]
[1743360763858,0.15650336,82884.0,82878.0,0.241318]
[1743360764255,0.015143,82883.0,82878.0,0.241318]
[1743360764617,0.015143,82883.0,82877.0,0.012066]
[1743360765251,0.027208,82883.0,82878.0,0.002]
[1743360765447,0.015143,82883.0,82881.0,0.241309]
[1743360765652,0.02426412,82882.0,82881.0,0.241309]
[1743360766057,0.02426412,82882.0,82880.0,0.012065]
[1743360767031,0.02426412,82882.0,82880.0,0.253374]
[1743360767909,0.02426412,82882.0,82876.0,0.0130554]
[1743360768111,0.012065,82880.0,82876.0,0.0009894]
[1743360768316,0.241316,82879.0,82876.0,0.0009894]
[1743360768510,0.012065,82880.0,82876.0,0.0009894]
[1743360768715,0.01514868,82878.0,82876.0,0.0009894]
[1743360768915,0.253374,82881.0,82876.0,0.2423124]
[1743360769150,0.01514037,82877.0,82876.0,0.2423124]
[1743360769344,0.012065,82881.0,82876.0,0.2423124]
[1743360769824,0.01514037,82880.0,82876.0,0.2423124]
[1743360770088,0.241315,82879.0,82876.0,0.0009894]
[1743360770676,0.01514037,82878.0,82876.0,0.0009894]
[1743360771490,0.012065,82880.0,82876.0,0.0009894]
[1743360771714,0.02720637,82877.0,82876.0,0.0009894]
[1743360771917,0.02720637,82877.0,82854.0,0.01318394]
[1743360771918,0.012067,82867.0,82861.0,0.0009816]
[1743360772119,0.6847285,82867.0,82861.0,0.0009816]
[1743360772321,0.6847285,82867.0,82857.0,0.0003368]
[1743360772322,0.71188363,82867.0,82857.0,0.0003368]
[1743360773087,0.77531427,82867.0,82857.0,0.0003368]
[1743360773444,0.71672363,82867.0,82857.0,0.0003368]
[1743360773662,0.71188363,82867.0,82857.0,0.0003368]
[1743360773829,0.71188363,82867.0,82866.0,0.00538413]
[1743360774033,0.71188363,82867.0,82866.0,0.00638413]
[1743360776876,0.71188363,82867.0,82866.0,0.00538413]
[1743360777123,0.73776133,82867.0,82866.0,0.00538413]
[1743360777533,0.73776133,82867.0,82866.0,0.00438413]
[1743360777756,0.73876133,82867.0,82866.0,0.00438413]
[1743360779991,0.7576765,82867.0,82866.0,0.00438413]
[1743360781810,0.75797321,82867.0,82866.0,0.00438413]
[1743360782602,0.73905804,82867.0,82866.0,0.00438413]
[1743360785422,1.31397804,82867.0,82866.0,0.00438413]
[1743360789593,1.23257804,82867.0,82866.0,0.00438413]
[1743360790024,1.37177804,82867.0,82866.0,0.00438413]
[1743360790969,1.39069266,82867.0,82866.0,0.00438413]
[1743360791954,1.37177804,82867.0,82866.0,0.00438413]
[1743360794734,1.32427804,82867.0,82866.0,0.00438413]
[1743360795403,1.04536389,82867.0,82866.0,0.00438413]
[1743360795552,1.05743089,82867.0,82866.0,0.00438413]
[1743360796156,1.03851601,82867.0,82866.0,0.00438413]
[1743360796362,1.27986601,82867.0,82866.0,0.00438413]
[1743360799095,1.14066601,82867.0,82866.0,0.00438413]
[1743360799239,1.27986601,82867.0,82866.0,0.00438413]
[1743360800480,1.29878137,82867.0,82866.0,0.00438413]
[1743360805908,1.27986601,82867.0,82866.0,0.00438413]
[1743360808173,1.28003451,82867.0,82866.0,0.00438413]
[1743360809089,1.14083451,82867.0,82866.0,0.00438413]
[1743360809320,1.28003451,82867.0,82866.0,0.00438413]
[1743360814526,1.29895014,82867.0,82866.0,0.00438413]
[1743360816828,1.28003451,82867.0,82866.0,0.00438413]